Cogmind - Beta 11 X5 @@@ ROGUE MODE // 2021.06.20 @ 15:12:21 Player: Luigi Panache Result: Destroyed by as-09590 with Assembled Maul Performance ------------- Evolutions (0) 0 Regions Visited (4) 800 Robots Destroyed (11) 55 Value Destroyed (262) 262 Prototype IDs (4) 80 Alien Tech Used (0) 0 Bonus (0) 0 TOTAL SCORE: 1197 Bonus ------- None Cogmind --------- Core Integrity 0/250 Matter 296/300 Energy 100/100 System Corruption 2% Temperature Cool (0) Movement Treading (160) Location -9/Mines Parts ------- > --- POWER (1) -------- (None) > --- PROPULSION (2) --- Improved Treads > --- UTILITY (2) ------ Large Storage Unit Targeting Computer > --- WEAPON (2) ------- (None) > --- INVENTORY (15) --- Light Treads Light Treads Improved Treads Improved Treads Wheel Compact Wheel Small Storage Unit Peak State ------------ > --- POWER ------------ Light Ion Engine > --- PROPULSION ------- Improved Treads Improved Treads > --- UTILITY ---------- Large Storage Unit Targeting Computer > --- WEAPON ----------- EM Pulse Gun Medium Laser > --- INVENTORY -------- Light Treads Light Treads Improved Treads Improved Treads Wheel Compact Wheel Small Storage Unit Assault Rifle [Rating: 10] Favorites ----------- Power Light Ion Engine Engine Light Ion Engine Propulsion Improved Treads Treads Improved Treads Leg Aluminum Leg Utility Targeting Computer Storage Large Storage Unit Processor Targeting Computer Weapon Medium Laser Energy Gun Medium Laser Ballistic Gun Assault Rifle Build | -11 -10 -10 -10 -9 ------- Run | Scr Mat Min Exi Min Slots Evolved . | . . . . . Power . | . . . . . Propulsion . | . . . . . Utility . | . . . . . Weapon . | . . . . . Parts Attached 6 | . 5 . . 1 Power 1 | . 1 . . . Engine 1 | . 1 . . . Core . | . . . . . Reactor . | . . . . . Propulsion 2 | . 2 . . . Treads 2 | . 2 . . . Leg . | . . . . . Wheel . | . . . . . Hover . | . . . . . Flight . | . . . . . Utility 2 | . 2 . . . Device . | . . . . . Storage 1 | . 1 . . . Processor 1 | . 1 . . . Hackware . | . . . . . Protection . | . . . . . Artifact . | . . . . . Weapon 1 | . . . . 1 Energy Gun . | . . . . . Energy Cannon . | . . . . . Ballistic Gun 1 | . . . . 1 Ballistic Cannon . | . . . . . Launcher . | . . . . . Special Weapon . | . . . . . Impact Weapon . | . . . . . Slashing Weapon . | . . . . . Piercing Weapon . | . . . . . Special Melee Weapon . | . . . . . Unidentified Prototypes . | . . . . . Parts Lost 6 | . 1 . . 5 Power 2 | . 1 . . 1 Propulsion 1 | . . . . 1 Utility . | . . . . . Weapon 3 | . . . . 3 Highest Loss Streak 4 | . 1 . . 4 Average Slot Usage (%) 95 | . 93 100 100 93 Engine 12 | . 12 14 14 12 Treads 17 | . 3 28 28 26 Leg 10 | . 24 . . . Storage 14 | . 14 14 14 14 Processor 12 | . 9 14 14 14 Energy Gun 24 | . 28 28 28 12 Ballistic Gun 2 | . . . . 12 Naked Turns . | . . . . . Heaviest Build 27 | 12 27 27 27 27 Greatest Support 46 | 20 46 46 46 46 Greatest Overweight (x) 1 | . 1 . . 1 Average Overweight (x) . | . . . . . Largest Inventory Capacity 15 | . 15 15 15 15 Average Capacity 13 | . 10 15 15 15 Most Carried 8 | . 8 8 8 8 Average Carried 7 | . 6 8 8 7 Final Capacity 15 | 8 15 15 15 15 Final Carried 8 | 6 8 8 8 7 Class Distribution -------------------- 100% | Mutant Dominant Class ---------------- Mutant | -10/Materials Mutant | -10/Mines Mutant | -10/Exiles Mutant | -9/Mines Resources | -11 -10 -10 -10 -9 ----------- Run | Scr Mat Min Exi Min Matter Collected 242 | 177 34 . . 31 Remotely . | . . . . . Salvage Created 289 | . 149 . . 140 Parts 17 | . 9 . . 8 Haulers Intercepted . | . . . . . Recyclers Shooed . | . . . . . Parts Field Recycled . | . . . . . Retrieved Matter . | . . . . . Parts Self-Destructed . | . . . . . Prevented . | . . . . . Kills | -11 -10 -10 -10 -9 ------- Run | Scr Mat Min Exi Min Combat Hostiles Destroyed 10 | . 5 . . 5 Guns 7 | . 3 . . 4 AOE 2 | . 2 . . . Classes Destroyed 3 | . 3 . . . Watcher 1 | . 1 . . . Swarmer 5 | . 3 . . 2 Grunt 5 | . 2 . . 3 Best Kill Streak 5 | . 3 . . 5 Combat Bots Only 5 | . 3 . . 5 Max Kills in Single Turn 2 | . 2 . . 1 Gunslinging . | . . . . . Exploded 2 | . 2 . . . Melee . | . . . . . Uniques/NPCs Destroyed . | . . . . . Combat | -11 -10 -10 -10 -9 -------- Run | Scr Mat Min Exi Min Damage Taken 998 | . 332 . . 666 Core 263 | . 105 . . 158 Absorbed by Shields . | . . . . . Core Remaining (%) 100 | 100 . . . . Volleys Fired 32 | . 18 . . 14 Largest 2 | . 2 . . 2 Hottest 90 | . 90 . . 90 Shots Fired 56 | . 36 . . 20 Gun 56 | . 36 . . 20 Cannon . | . . . . . Launcher . | . . . . . Special . | . . . . . Kinetic 7 | . . . . 7 Thermal 29 | . 18 . . 11 Explosive . | . . . . . Electromagnetic 20 | . 18 . . 2 Robot Hit Streak 12 | . 12 . . 10 Robot Miss Streak 4 | . 4 . . 1 Penetration Max . | . . . . . Secondary Targets 1 | . 1 . . . Max Gunslinging Chain 1 | . 1 . . . Shots Hit Robots 41 | . 24 . . 17 Core Hits 15 | . 7 . . 8 Critical Kills . | . . . . . Critical Parts Destroyed . | . . . . . Critical Strikes 2 | . 1 . . 1 Burn 2 | . 1 . . 1 Melee Attacks . | . . . . . Impact . | . . . . . Slashing . | . . . . . Piercing . | . . . . . Sneak Attacks . | . . . . . Combat Hostiles . | . . . . . Follow-up Attacks . | . . . . . Damage Inflicted 728 | . 410 11 . 307 Guns 531 | . 311 . . 220 Cannons . | . . . . . Explosions 176 | . 99 . . 77 Melee . | . . . . . Ramming 21 | . . 11 . 10 Kinetic 69 | . . . . 69 Thermal 440 | . 238 . . 202 Explosive . | . . . . . Electromagnetic 198 | . 172 . . 26 Impact . | . . . . . Slashing . | . . . . . Piercing . | . . . . . Highest Corruption 2 | . . . . 2 Average Corruption 2 | . . . . 2 Corruption Purged . | . . . . . Overload Shots . | . . . . . Overflow Damage 37 | . 18 . . 19 Projectiles . | . . . . . Explosions 37 | . 18 . . 19 Melee . | . . . . . Knockbacks . | . . . . . Impact . | . . . . . Kinetic . | . . . . . Secondary . | . . . . . Self-Inflicted Damage 91 | . 51 . . 40 Shots 2 | . 1 . . 1 Rammed 2 | . . 1 . 1 Targets Rammed 3 | . 1 1 . 1 Kicked 1 | . 1 . . . Crushed . | . . . . . Highest Temperature 303 | . 303 . . 185 Average Temperature 101 | . 106 . . 92 Received Heat Transfer 159 | . 96 . . 63 Siege Activations . | . . . . . Robots Corrupted . | . . . . . Combat Hostiles . | . . . . . Parts Fried . | . . . . . Impact Corruptions . | . . . . . Robots Melted 1 | . . . . 1 Combat Hostiles 1 | . . . . 1 Parts Melted . | . . . . . Heat Transferred 1125 | . 581 . . 544 Parts Sabotaged . | . . . . . Parts Stolen . | . . . . . Parts Stripped . | . . . . . Power Chain Reactions 2 | . 1 . . 1 Missiles Intercepted . | . . . . . Alert | -11 -10 -10 -10 -9 ------- Run | Scr Mat Min Exi Min Peak Influence 182 | . 182 5 . 155 Initial 5 | . . 5 . . Average 85 | . 74 5 . 140 Maximum Alert Level . | . . . . . Low Security (%) 100 | . 100 100 . 100 Level 1 . | . . . . . Level 2 . | . . . . . Level 3 . | . . . . . Level 4 . | . . . . . Level 5 . | . . . . . High Security . | . . . . . Max Security . | . . . . . Squads Dispatched 2 | . 2 . . . Investigation . | . . . . . Extermination . | . . . . . Reinforcement 2 | . 2 . . . Assault . | . . . . . Garrison . | . . . . . Intercept . | . . . . . Construction Impeded . | . . . . . Haulers Reinforced . | . . . . . Cargo Convoy Interrupts . | . . . . . Stealth | -11 -10 -10 -10 -9 --------- Run | Scr Mat Min Exi Min Distress Signals . | . . . . . Communications Jammed . | . . . . . Distress Signals . | . . . . . Times Spotted 32 | . 11 . . 21 Peak Tracking Total 15 | . 3 . . 15 Tactical Retreats 3 | . 1 . . 2 Traps | -11 -10 -10 -10 -9 ------- Run | Scr Mat Min Exi Min Traps Triggered . | . . . . . Indirectly . | . . . . . Trap Hack Attempts . | . . . . . Triggered . | . . . . . Disarmed . | . . . . . Reprogrammed . | . . . . . Reused . | . . . . . Traps Extracted . | . . . . . Installed . | . . . . . Triggered . | . . . . . Machines | -11 -10 -10 -10 -9 ---------- Run | Scr Mat Min Exi Min Machines Disabled . | . . . . . Max in Single Turn . | . . . . . Machines Sabotaged . | . . . . . Garrisons Compromised . | . . . . . Overloaded Fab Kills . | . . . . . Fab Network Shutdowns . | . . . . . Hacking | -11 -10 -10 -10 -9 --------- Run | Scr Mat Min Exi Min Machines Accessed 4 | . 3 . 1 . Terminals 3 | . 3 . . . Fabricators . | . . . . . Repair Stations . | . . . . . Recycling Units . | . . . . . Scanalyzers . | . . . . . Garrison Access . | . . . . . Total Hacks 13 | . 12 . 1 . Successful 6 | . 5 . 1 . Failed 7 | . 7 . . . Catastrophic 2 | . 2 . . . Database Lockouts . | . . . . . Manual 7 | . 7 . . . Terminals 12 | . 12 . . . Fabricators . | . . . . . Repair Stations . | . . . . . Recycling Units . | . . . . . Scanalyzers . | . . . . . Garrison Access . | . . . . . Terminal Hacks 5 | . 4 . 1 . Record 1 | . . . 1 . Part Schematic 1 | . 1 . . . Prototype ID Bank 2 | . 2 . . . Hauler Manifests 1 | . 1 . . . Fabricator Hacks . | . . . . . Repair Station Hacks . | . . . . . Recycling Unit Hacks . | . . . . . Scanalyzer . | . . . . . Garrison Access Hacks . | . . . . . Unauthorized Hacks 1 | . 1 . . . Terminals 1 | . 1 . . . Botnet 1 | . 1 . . . Fabricators . | . . . . . Repair Stations . | . . . . . Recycling Units . | . . . . . Scanalyzers . | . . . . . Garrison Access . | . . . . . Data Cores Recovered . | . . . . . Used . | . . . . . Hacking Detections 3 | . 3 . . . Full Trace Events . | . . . . . Feedback Events . | . . . . . Feedback Blocked . | . . . . . Robot Schematics Acquired . | . . . . . Robots Built . | . . . . . Matter . | . . . . . Time . | . . . . . Total Robot Build Rating . | . . . . . Part Schematics Acquired 1 | . 1 . . . Parts Built . | . . . . . Matter . | . . . . . Time . | . . . . . Total Part Build Rating . | . . . . . Parts Repaired . | . . . . . Time . | . . . . . Parts Recycled . | . . . . . Recycled Matter . | . . . . . Retrieved Matter . | . . . . . Retrieved Components . | . . . . . Parts Scanalyzed . | . . . . . Part Schematics Acquired . | . . . . . Parts Damaged . | . . . . . Bothacking | -11 -10 -10 -10 -9 ------------ Run | Scr Mat Min Exi Min Used RIF Installer . | . . . . . Robots Hacked . | . . . . . Non-combat . | . . . . . Combat . | . . . . . Robot Hacks Applied . | . . . . . Relay Couplers Released . | . . . . . Robots Rewired . | . . . . . Allies Hacked . | . . . . . Hacks Repelled . | . . . . . Allies | -11 -10 -10 -10 -9 -------- Run | Scr Mat Min Exi Min Total Allies . | . . . . . Largest Group . | . . . . . Highest-Rated Group . | . . . . . Highest-Rated Ally . | . . . . . Total Orders . | . . . . . Ally Attacks . | . . . . . Total Damage . | . . . . . Kills . | . . . . . Allies Corrupted . | . . . . . Allies Melted . | . . . . . Intel | -11 -10 -10 -10 -9 ------- Run | Scr Mat Min Exi Min Robot Analysis Total . | . . . . . Derelict Logs Recovered 1 | . . . . 1 Drone Launches . | . . . . . Drone Recoveries . | . . . . . Exploration | -11 -10 -10 -10 -9 ------------- Run | Scr Mat Min Exi Min Turns Passed 1027 | . 426 109 255 237 Spaces Moved 610 | 1 257 68 160 124 Core . | . . . . . Treads 382 | . 30 68 160 124 Legs 228 | 1 227 . . . Wheels . | . . . . . Hover . | . . . . . Flight . | . . . . . Fastest Speed 120 | 120 120 160 160 160 Average Speed 150 | 120 136 160 160 161 Slowest Speed 260 | 120 260 160 160 260 Overloaded Moves . | . . . . . Propulsion Burnouts . | . . . . . Robots Hopped . | . . . . . Cave-ins Triggered . | . . . . . Exploration Rate (%) 32 | 2 64 19 53 25 Regions Visited 4 Branch Regions 3 Pre-discovered Areas 1 | . . . . 1 Known Exits Taken . | . . . . . Unknown Exits Taken 4 | 1 1 1 1 . Scrap Searched . | . . . . . Spaces Dug . | . . . . . Terrain Destroyed 6 | . 3 . . 3 Melee . | . . . . . Projectile . | . . . . . AOE 6 | . 3 . . 3 Terrain Rammed . | . . . . . Walls Destroyed . | . . . . . Machines Disabled . | . . . . . Actions | -11 -10 -10 -10 -9 --------- Run | Scr Mat Min Exi Min Total 661 | . 294 68 159 140 Wait 10 | . 10 . . . Move 606 | . 256 67 159 124 Hop . | . . . . . Pick Up 2 | . 2 . . . Fast Attach 3 | . 3 . . . Attach 2 | . 1 . . 1 Detach . | . . . . . Swap 1 | . 1 . . . Drop 2 | . 2 . . . Fire 32 | . 18 . . 14 Melee . | . . . . . Ram . | . . . . . Kick 1 | . 1 . . . Crush 2 | . . 1 . 1 Escape Stasis . | . . . . . Rewire . | . . . . . Trap . | . . . . . Miscellaneous . | . . . . . Route ------- -11/Scrapyard -10/Materials (discovered 4 exits: [*Mat x2] / [*Min x2]) -10/Mines -10/Exiles -9/Mines (discovered 1 exit: [*Mat]) History --------- Turn | Location | Event 1 | -11/Scrapyard | Discovered new exit (range 0) 1 | -11/Scrapyard | Entered Materials 1 | -10/Materials | Discovered new exit (range 14) 120 | -10/Materials | Discovered new exit (range 7) 227 | -10/Materials | Discovered new exit (range 4) 311 | -10/Materials | Build established: Mutant 408 | -10/Materials | Discovered new exit (range 13) 427 | -10/Materials | Entered Mines 528 | -10/Mines | Deemed a non-threat by the Exiles lab entrance 530 | -10/Mines | Discovered new exit (range 5) 536 | -10/Mines | Entered Exiles 536 | -10/Exiles | Found Exiles lab abandoned 778 | -10/Exiles | Discovered new exit (range 10) 791 | -10/Exiles | Entered Mines 800 | -9/Mines | Core integrity fell below 50% 842 | -9/Mines | Learned location of Storage (-7) 974 | -9/Mines | Assembled infested the area 1005 | -9/Mines | Core integrity fell below 20% 1019 | -9/Mines | Discovered new exit (range 11) 1028 | -9/Mines | Destroyed by as-09590 with Assembled Maul Last Messages --------------- 01006_ D-53 Grenadier destroyed. 01007_ The unstable cave ceiling collapses. 01007_ Destroyed Mining Laser. 01007_ U-05 Engineer lays Concrete. 01008_ as-68260 sneak attacks. 01008_ T-07 Excavator system corrupted by crushing effect. 01008_ T-07 Excavator knocked back. 01008_ T-07 Excavator destroyed. 01009_ The unstable cave ceiling collapses. 01010_ U-05 Engineer lays Concrete. 01011_ T-07 Excavator system corrupted by crushing effect. 01011_ U-05 Engineer lays Concrete. 01011_ T-07 Excavator destroyed. 01012_ The unstable cave ceiling collapses. 01012_ U-05 Engineer lays Concrete. 01013_ U-05 Engineer builds a Wall. 01015_ The unstable cave ceiling collapses. 01019_ EXIT=FOUND 01023_ Assault Rifle destroyed. 01023_ System corrupted by crushing effect (+2). Map ----- +----------------------------------------------------+ | ????? ???#########??????????? #?????????????????? | | ????? ???# #???????????# #?????????????????? | | ????? ???# """ #???????????# #??????#??????????? | | ###?? ???# """ #???????????# #????? ###### # ? | | ##? ???# """ #???????????# #?#### ??? | | ## #??# #???????????# ### ?????? | | ## #??### ####??????????## ## #?????????? | | #?# #????# ############### % #?????????? | | #?# #????# %| ##?????????? | | #?# #????# ###??????????? | | #?# #????# ############### ##????????????? | | #?# #????# #?????????????# # ##????????????? | | #?# #????# #????????????## # ###???????????? | | ### #????# #????????????## # # #####???????? | | ## ###### #????????????## #???????? | | #????????????# #???????? | | ##???????????## # ## #???????? | | ##### ##??????????# #???????????? | | #???# ##???????#### ##???????????? | | ##???## ##??????# ##???????????? | | ##?????## #??????# ###### ##????????????? | | #???????# #??????# #??#### ##?????????????? | | ##??????# %% ##??????# #?????? #??????????????? | | ###???????# ###??????# #?????? #??????????????? | | ??????????## ###???????#a#?????? #??????????????? | | ???????????#####????????#@#?????? #??????????????? | | ????????????????????????# #?????? #??????????????? | | ????????????????????????# #?????? #??????????????? | | ????????????????????????# #???????#??????????????? | | ???????????????????????? #??????????????????????? | | ???????????????????????? ??????????????????????? | | ???????????????????????? < ??????????????????????? | | ???????????????????????? ??????????????????????? | | ???????????????????????? #??????????????????????? | | ????????????????????????##???????????????????????? | | ?????????????????????????????????????????????????? | | ?????????????????????????????????????????????????? | | | | | | | | | | | | | | | | | | | | | | | | | | | +----------------------------------------------------+ Best States ------------- Heat Dissipation 25 Energy Generation 10 Energy Capacity 125 Matter Stores 300 Matter Capacity 300 Sight Range 16 Terrain Scan Density 10 Evasion (%) 55 Targeting Accuracy 5 Recoil Reduction 2 Item Schematics ----------------- Huge Storage Unit | -10/Materials | Hacked Robot Schematics ------------------ None Fabricated ------------ Nothing Alien Tech Used ----------------- None Achievements -------------- None Challenges ------------ None Game ------ Seed MetafiberBattleMachine Manual? 0 Play Time 00:20:04 Cumulative 387.3 hours Start 2021.06.20 @ 12:22:25 End 2021.06.20 @ 15:12:21 Sessions 1 Manual Loads 0 Difficulty Rogue Special Mode None Game No. 369 Rogue 154 Adventurer 112 Explorer 103 Win Type - Total 27 Types 19/0/5/2/0/0/0/1/0 Lore% 85 Gallery% 90 Achievement% 74 Wizard Run 0 Options --------- ASCII 0 Keyboard 0 Movement Vi Keybinds 0 Fullscreen 2 Font 12/Terminus Map View 76x56 Tactical HUD 1 Map Filters NONE Filters NONE Steam 1 RUN: 67d6ce93-3ae9-4666-9081-f335f2e90aae